{"text_format":"1","workbook":"xlsx","n_sheets":3,"sheets":["Úvod","Data","List2"],"not_rendered":{"charts":0,"images":0,"macros":1,"external_links":0,"defined_names":0,"comments":1,"pivot_tables":0},"unopened":[],"bounds":{"document_bytes":16777216,"sheet_cells":100000,"rows_first":2000,"rows_last":500,"rows_between":2000,"halvings":0,"cell_chars":16384,"cell_head_chars":4096},"cells_cut":0,"cells_raw":0,"read":"whole","date_system":"1900"}

{"sheet":"Úvod","index":0,"n_rows":37,"n_cols":6,"rows_kept":37,"cut":false,"hidden":false,"merged":[]}
["Převod fyzikálních jednotek",null,null,null,null,{"$f":"Verzi()","v":" V1.1"}]
[]
["Autor:   Ing. Vratislav Hlubuček, CSc.    1999, 2012"]
[]
["Soubor VBA maker, která jako funkce sešitu umožňují různé převody fyzikálních jednotek"]
["do soustavy SI, ale i mezi různými jednotkami. Provádí i kontrolu rozměrové konzistence"]
["složených rozměrů. Kromě násobných jednotek zahrnuje i jednotky anglosaské."]
["Umí také převádět teploty mezi °C, K a °F"]
["Seznam dostupných jednotek zobrazíte stiskem Ctrl+M   (makro Jednotky)"]
["Další jednotky si  může uživatel přidat do podprogramu Inicializace v Modulu1"]
[]
["Přehled funkcí:"]
["Function Preved(tx)  Převede z buňky text \"číslo s rozměrem\" do SI jako číslo."]
["Rozměr ZA číslem označuje v jakých jednotkách číslo je. Pokud před číslem není žádný"]
["rozměr, tak se hodnota převede do základních jednotek soustavy SI (m,kg,s,K)"]
["Pokud je uveden i rozměr PŘED číslem, chápe se jako rozměr do kterého se číselná"]
["hodnota převede. Příklad:  15 km/s  nebo 25 mi/hr   převede do SI na m/s"]
["Naopak °C 451 °F  převede 451 °F na °C"]
["Jako parametr je obvykle adresa buňky s číslem s rozměrem nebo to může být i vepsaná"]
["textová konstanta. =Preved(B3)     nebo =Preved(\"°C 451 °F\")"]
["Obecný tvar argumentu je tedy: RozměrDO číslo RozměrZ"]
["Mezi rozměry a číslem musí být vždy mezera! Rozměr může být i v závorce."]
[]
["Function PrevedXRtx(tx) As String  Převede z textové buňky číslo s rozměrem do SI jako text s rozměrem."]
["Stejné jako u fce =Preved(tx) jen výsledkem není číselná hodnota, ale hodnota ve formě"]
["textové s rozměrem. Příklad:  =PrevedRXtx(\"1 BTU/lb/°F\")  dává  4186,91 J/kg/K"]
["Argumentem bývá obvykle adresa buňky s hodnotou a rozměrem."]
[]
["Function PrevedXR(xx, tx)  Převede číslo obsažené v prvním argumentu xx (buňce) "]
["s rozměrem tx obsaženým v druhém argumentu (buňce) do SI jako číslo."]
["Příklad: =PrevedXR(C10;C9)"]
[]
["Function Rozmer(tx) As String  Vrací jen rozměr za číslem z buňky číslo a rozměr jako text."]
["Rozměr před číslem ignoruje a vrací jen rozměr za číslem. Pukud není, tak prázdný řetězec."]
[]
["Function Rozmer1(tx) As String   Vrací jen první rozměr před číslem z buňky číslo a rozměr, jako text."]
["Rozměr za číslem ignoruje a pokud není rozměr před číslem vrací prázdný řetězec."]

{"sheet":"Data","index":1,"n_rows":13,"n_cols":6,"rows_kept":13,"cut":false,"hidden":false,"merged":[]}
["Převody fyzikálních jednotek mezi soustavami jednotek",null,null,"Přehled jednotek Ctrl+M"]
[]
["Zadání převodu:"]
[]
["RozměrDO hodnota RozměrZ:","°C 116 °F","1 BTU/lb/°F","1 (kW/ft/K)","mi/hr 60 km/h","37,28 mi"]
["Převedená hodnota v SI:",{"$f":"Preved(B5)","v":46.666664123535156},{"$f":"Preved(C5)","v":4186.90478515625},{"$f":"Preved(D5)","v":3280.83984375},{"$f":"Preved(E5)","v":37.283290863037109},{"$f":"Preved(F5)","v":59994.703125}]
["=PrevedXRtx( )",{"$f":"PrevedXRtx(B5)","v":"46,667 °C"},{"$f":"PrevedXRtx(C5)","v":"4186,91 J/kg/K"},{"$f":"PrevedXRtx(D5)","v":"3280,84 W/m/K"},{"$f":"PrevedXRtx(E5)","v":"37,283 mi/hr"},{"$f":"PrevedXRtx(F5)","v":"5,9995E+04 m"}]
[null,null,{"$f":"PrevedXRtx(\"1 BTU/lb/°F\")","v":"4186,91 J/kg/K"}]
["=Rozmer( )",{"$f":"Rozmer(B5)","v":"°F"},{"$f":"Rozmer(C5)","v":"BTU/lb/°F"},"(kW/ft/K)",{"$f":"Rozmer(E5)","v":"km/h"},"mi"]
["Hodnota",90,1,2.5,100,100]
["=PrevodXR( )",{"$f":"PrevedXR(B10,B9)","v":305.37222290039062},{"$f":"PrevedXR(C10,C9)","v":4186.90478515625},{"$f":"PrevedXR(D10,D9)","v":8202.099609375},{"$f":"PrevedXR(E10,E9)","v":27.777779102325439},{"$f":"PrevedXR(F10,F9)","v":160930.0048828125}]
[]
["=Rozmer1( )",{"$f":"Rozmer1(B5)","v":"°C"},{"$f":"Rozmer1(C5)","v":""},{"$f":"Rozmer1(D5)","v":""},{"$f":"Rozmer1(E5)","v":"mi/hr"},{"$f":"Rozmer1(F5)","v":""}]

{"sheet":"List2","index":2,"n_rows":0,"n_cols":0,"rows_kept":0,"cut":false,"hidden":false,"merged":[]}